fUST/lending_fUST_20250529
["ID","MTS","AMOUNT","RATE_DAILY","PERIOD"]
[362917408,1748520656561,-4236.88,0.00022,2]
[362917409,1748520656571,-603.93,0.00022,2]
[362917410,1748520656581,-500.0,0.00022,5]
[362917411,1748520656591,-500.0,0.00022,5]
[362917412,1748520656601,-500.0,0.00022,5]
[362917413,1748520656611,-500.0,0.00022,5]
[362917414,1748520656621,-500.0,0.00022,5]
[362917415,1748520656631,-500.0,0.00022,5]
[362917416,1748520656641,-500.0,0.00022,2]
[362917417,1748520656654,-500.0,0.00022,3]
[362917418,1748520656664,-500.0,0.00022,5]
[362917419,1748520656674,-583.4289346,0.00022003,6]
[362917420,1748520656683,-251.23553649,0.00022169,2]
[362917421,1748520656694,-200.0,0.00022191,2]
[362917422,1748520656703,-200.0,0.00022191,2]
[362917423,1748520656712,-200.0,0.00022191,2]
[362917424,1748520656723,-200.0,0.00022191,2]
[362917425,1748520656733,-200.0,0.00022191,2]
[362917426,1748520656742,-200.0,0.00022191,2]
[362917427,1748520656752,-256.34727452,0.00022191,2]
[362917428,1748520656763,-190.62,0.00022191,2]
[362917429,1748520656772,-430.0,0.00022191,2]
[362917430,1748520656782,-430.0,0.00022191,2]
[362917431,1748520656791,-430.0,0.00022191,2]
[362917432,1748520656800,-430.0,0.00022191,2]
[362917433,1748520656810,-362.61763877,0.00022191,2]
[362917434,1748520656819,-430.0,0.00022191,2]
[362917435,1748520656829,-430.0,0.00022191,2]
[362917436,1748520656839,-430.0,0.00022191,2]
[362917437,1748520656849,-430.0,0.00022191,2]
[362917438,1748520656859,-430.0,0.00022191,2]
[362917439,1748520656869,-430.0,0.00022191,2]
[362917440,1748520656878,-1615.01,0.00022191,2]
[362917441,1748520656887,-430.0,0.00022191,2]
[362917442,1748520656897,-430.0,0.00022191,2]
[362917443,1748520656907,-424.11361612,0.00022191,2]
[362917444,1748520656916,-696.37,0.00022191,2]
[362917445,1748520656925,-430.0,0.00022191,2]
[362917446,1748520656934,-522.24,0.00022191,2]
[362917447,1748520656944,-1165.95,0.00022191,2]
[362917448,1748520656954,-430.0,0.00022191,2]
[362917449,1748520656963,-430.0,0.00022191,2]
[362917450,1748520656972,-430.0,0.00022191,2]
[362917451,1748520656981,-533.27,0.00022191,2]
[362917452,1748520656991,-430.0,0.00022191,2]
[362917453,1748520657000,-430.0,0.00022191,2]
[362917454,1748520657010,-430.0,0.00022191,2]
[362917455,1748520657019,-481.59,0.00022191,2]
[362917456,1748520657028,-494.47,0.00022191,2]
[362917457,1748520657037,-430.0,0.00022191,2]
[362917458,1748520657046,-430.0,0.00022191,2]
[362917459,1748520657056,-981.55,0.00022191,2]
[362917460,1748520657065,-456.26,0.00022191,2]
[362917461,1748520657074,-430.0,0.00022191,2]
[362917462,1748520657083,-430.0,0.00022191,2]
[362917463,1748520657092,-430.0,0.00022191,2]
[362917464,1748520657102,-445.85260338,0.00022191,2]
[362917465,1748520657113,-1201.9,0.00022191,2]
[362917466,1748520657122,-430.0,0.00022191,2]
[362917467,1748520657131,-430.0,0.00022191,2]
[362917468,1748520657140,-430.0,0.00022191,2]
[362917469,1748520657150,-430.0,0.00022191,2]
[362917470,1748520657160,-435.74,0.00022191,2]
[362917471,1748520657169,-430.0,0.00022191,2]
[362917472,1748520657178,-430.0,0.00022191,2]
[362917473,1748520657188,-575.93,0.00022191,2]
[362917474,1748520657197,-430.0,0.00022191,2]
[362917475,1748520657208,-430.0,0.00022191,2]
[362917476,1748520657218,-430.0,0.00022191,2]
[362917477,1748520657228,-430.0,0.00022191,2]
[362917478,1748520657237,-628.52,0.00022191,2]
[362917479,1748520657246,-430.0,0.00022191,2]
[362917480,1748520657256,-713.22,0.00022191,2]
[362917481,1748520657266,-430.0,0.00022191,2]
[362917482,1748520657275,-430.0,0.00022191,2]
[362917483,1748520657284,-430.0,0.00022191,2]
[362917484,1748520657293,-578.15,0.00022191,2]
[362917485,1748520657302,-430.0,0.00022191,2]
[362917486,1748520657311,-583.4289346,0.0002221,6]
[362917487,1748520657320,-583.4289346,0.00022417,7]
[362917488,1748520657329,-430.0,0.00022465,2]
[362917489,1748520657339,-430.0,0.00022465,2]
[362917490,1748520657348,-430.0,0.00022465,2]
[362917491,1748520657357,-430.0,0.00022465,2]
[362917492,1748520657367,-430.0,0.00022465,2]
[362917493,1748520657376,-430.0,0.00022465,2]
[362917494,1748520657385,-430.0,0.00022465,2]
[362917495,1748520657394,-297.39,0.00022465,2]
[362917496,1748520657403,-430.0,0.00022465,2]
[362917497,1748520657413,-430.0,0.00022465,2]
[362917498,1748520657423,-1615.01,0.00022465,2]
[362917499,1748520657433,-430.0,0.00022465,2]
[362917500,1748520657506,-430.0,0.00022465,2]
[362917501,1748520657521,-696.37,0.00022465,2]
[362917502,1748520657530,-424.48293153,0.00022465,2]
[362917503,1748520657540,-522.24,0.00022465,2]
[362917504,1748520657549,-1165.95,0.00022465,2]
[362917505,1748520657558,-430.0,0.00022465,2]
[362917506,1748520657567,-326.94,0.00022465,2]
[362917507,1748520657576,-430.0,0.00022465,2]
[362917508,1748520657585,-533.27,0.00022465,2]
[362917509,1748520657595,-430.0,0.00022465,2]
[362917510,1748520657605,-430.0,0.00022465,2]
[362917511,1748520657614,-430.0,0.00022465,2]
[362917512,1748520657623,-430.0,0.00022465,2]
[362917513,1748520657633,-430.0,0.00022465,2]
[362917514,1748520657643,-456.26,0.00022465,2]
[362917515,1748520657656,-981.55,0.00022465,2]
[362917516,1748520657666,-430.0,0.00022465,2]
[362917517,1748520657675,-430.0,0.00022465,2]
[362917518,1748520657685,-343.67719879,0.00022465,2]
[362917519,1748520657805,-783.38499359,0.00022465,2]
[362917520,1748520657818,-74.83780762,0.00022465,2]
[362917521,1748520657828,-277.94774875,0.00022465,2]
[362917522,1748520657837,-430.0,0.00022465,2]
[362917523,1748520657848,-430.0,0.00022465,2]
[362917524,1748520657858,-430.0,0.00022465,2]
[362917525,1748520657867,-575.93,0.00022465,2]
[362917526,1748520657876,-430.0,0.00022465,2]
[362917527,1748520657886,-430.0,0.00022465,2]
[362917528,1748520657895,-430.0,0.00022465,2]
[362917529,1748520657905,-628.52,0.00022465,2]
[362917530,1748520657914,-713.22,0.00022465,2]
[362917531,1748520657924,-430.0,0.00022465,2]
[362917532,1748520657933,-430.0,0.00022465,2]
[362917533,1748520657943,-430.0,0.00022465,2]
[362917534,1748520657952,-578.15,0.00022465,2]
[362917535,1748520657962,-258.09,0.00022465,2]
[362917536,1748520657971,-615.81628712,0.00022557,2]
[362917537,1748520657980,-583.4289346,0.00022624,7]
[362917538,1748520657990,-504.98,0.000227,14]
[362917539,1748520657999,-475.64775627,0.00022739,2]
[362917540,1748520658008,-495.46546602,0.00022739,2]
[362917541,1748520658017,-430.0,0.00022739,2]
[362917542,1748520658026,-430.0,0.00022739,2]
[362917543,1748520658035,-506.12,0.00022739,2]
[362917544,1748520658044,-213.84600202,0.00022739,2]
[362917545,1748520658053,-430.0,0.00022739,2]
[362917546,1748520658062,-551.09,0.00022739,2]
[362917547,1748520658071,-1615.01,0.00022739,2]
[362917548,1748520658080,-430.0,0.00022739,2]
[362917549,1748520658089,-430.0,0.00022739,2]
[362917550,1748520658100,-696.37,0.00022739,2]
[362917551,1748520658109,-522.24,0.00022739,2]
[362917552,1748520658118,-1165.95,0.00022739,2]
[362917553,1748520658127,-430.0,0.00022739,2]
[362917554,1748520658136,-430.0,0.00022739,2]
[362917555,1748520658146,-533.27,0.00022739,2]
[362917556,1748520658155,-430.0,0.00022739,2]
[362917557,1748520658165,-430.0,0.00022739,2]
[362917558,1748520658174,-430.0,0.00022739,2]
[362917559,1748520658184,-430.0,0.00022739,2]
[362917560,1748520658193,-430.0,0.00022739,2]
[362917561,1748520658203,-456.26,0.00022739,2]
[362917562,1748520658213,-981.55,0.00022739,2]
[362917563,1748520658222,-473.18,0.00022739,2]
[362917564,1748520658231,-305.8443948,0.00022739,2]
[362917565,1748520658240,-1201.9,0.00022739,2]
[362917566,1748520658249,-430.0,0.00022739,2]
[362917567,1748520658260,-430.0,0.00022739,2]
[362917568,1748520658270,-430.0,0.00022739,2]
[362917569,1748520658280,-575.93,0.00022739,2]
[362917570,1748520658289,-430.0,0.00022739,2]
[362917571,1748520658299,-430.0,0.00022739,2]
[362917572,1748520658309,-430.0,0.00022739,2]
[362917573,1748520658318,-628.52,0.00022739,2]
[362917574,1748520658327,-713.22,0.00022739,2]
[362917575,1748520658337,-430.0,0.00022739,2]
[362917576,1748520658346,-430.0,0.00022739,2]
[362917577,1748520658355,-578.15,0.00022739,2]
[362917578,1748520658365,-583.4289346,0.00022831,8]
[362917579,1748520658375,-500.0,0.00023,4]
[362917580,1748520658384,-160.0,0.00023,3]
[362917581,1748520658394,-300.0,0.00023,10]
[362917582,1748520658404,-500.0,0.00023,5]
[362917583,1748520658413,-155.0,0.00023012,2]
[362917584,1748520658422,-430.0,0.00023013,2]
[362917585,1748520658432,-430.0,0.00023013,2]
[362917586,1748520658441,-430.0,0.00023013,2]
[362917587,1748520658451,-1615.01,0.00023013,2]
[362917588,1748520658460,-430.0,0.00023013,2]
[362917589,1748520658469,-430.0,0.00023013,2]
[362917590,1748520658478,-696.37,0.00023013,2]
[362917591,1748520658488,-522.24,0.00023013,2]
[362917592,1748520658497,-1165.95,0.00023013,2]
[362917593,1748520658507,-430.0,0.00023013,2]
[362917594,1748520658517,-430.0,0.00023013,2]
[362917595,1748520658527,-533.27,0.00023013,2]
[362917596,1748520658537,-430.0,0.00023013,2]
[362917597,1748520658610,-430.0,0.00023013,2]
[362917598,1748520658620,-430.0,0.00023013,2]
[362917599,1748520658629,-430.0,0.00023013,2]
[362917600,1748520658638,-430.0,0.00023013,2]
[362917601,1748520658648,-456.26,0.00023013,2]
[362917602,1748520658660,-981.55,0.00023013,2]
[362917603,1748520658670,-1201.9,0.00023013,2]
[362917604,1748520658680,-497.2,0.00023013,2]
[362917605,1748520658689,-430.0,0.00023013,2]
[362917606,1748520658699,-575.93,0.00023013,2]
[362917607,1748520658708,-430.0,0.00023013,2]
[362917608,1748520658718,-430.0,0.00023013,2]
[362917609,1748520658727,-628.52,0.00023013,2]
[362917610,1748520658737,-713.22,0.00023013,2]
[362917611,1748520658747,-430.0,0.00023013,2]
[362917612,1748520658758,-430.0,0.00023013,2]
[362917613,1748520658768,-578.15,0.00023013,2]
[362917614,1748520658777,-2228.0,0.00023025,2]
[362917615,1748520658787,-405.0,0.00023025,2]
[362917616,1748520658796,-583.4289346,0.00023038,8]
[362917617,1748520658806,-583.4289346,0.00023245,8]
[362917618,1748520658815,-337.66,0.00023287,2]
[362917619,1748520658825,-430.0,0.00023287,2]
[362917620,1748520658835,-430.0,0.00023287,2]
[362917621,1748520658846,-1615.01,0.00023287,2]
[362917622,1748520658855,-462.17104287,0.00023287,2]
[362917623,1748520658864,-430.0,0.00023287,2]
[362917624,1748520658873,-696.37,0.00023287,2]
[362917625,1748520658883,-522.24,0.00023287,2]
[362917626,1748520658893,-1165.95,0.00023287,2]
[362917627,1748520658902,-285.9,0.00023287,2]
[362917628,1748520658912,-251.69,0.00023287,2]
[362917629,1748520658921,-533.27,0.00023287,2]
[362917630,1748520658931,-430.0,0.00023287,2]
[362917631,1748520658941,-430.0,0.00023287,2]
[362917632,1748520658950,-430.0,0.00023287,2]
[362917633,1748520658959,-430.0,0.00023287,2]
[362917634,1748520658968,-430.0,0.00023287,2]
[362917635,1748520658978,-456.26,0.00023287,2]
[362917636,1748520658988,-981.55,0.00023287,2]
[362917637,1748520658997,-1201.9,0.00023287,2]
[362917638,1748520659007,-501.48527384,0.00023287,2]
[362917639,1748520659018,-575.93,0.00023287,2]
[362917640,1748520659028,-430.0,0.00023287,2]
[362917641,1748520659037,-430.0,0.00023287,2]
[362917642,1748520659046,-628.52,0.00023287,2]
[362917643,1748520659056,-713.22,0.00023287,2]
[362917644,1748520659065,-160.0,0.00023287,2]
[362917645,1748520659075,-159.55,0.00023287,2]
[362917646,1748520659084,-430.0,0.00023287,2]
[362917647,1748520659094,-578.15,0.00023287,2]
[362917648,1748520659103,-504.98,0.000233,14]
[362917649,1748520659112,-500.0,0.00023356,2]
[362917650,1748520659121,-546.33,0.000234,7]
[362917651,1748520659131,-1019.03,0.000234,7]
[362917652,1748520659140,-583.4289346,0.00023452,9]
[362917653,1748520659149,-430.0,0.00023561,2]
[362917654,1748520659159,-250.19,0.00023561,2]
[362917655,1748520659169,-1615.01,0.00023561,2]
[362917656,1748520659178,-430.0,0.00023561,2]
[362917657,1748520659187,-696.37,0.00023561,2]
[362917658,1748520659196,-522.24,0.00023561,2]
[362917659,1748520659206,-1165.95,0.00023561,2]
[362917660,1748520659215,-533.27,0.00023561,2]
[362917661,1748520659226,-430.0,0.00023561,2]
[362917662,1748520659235,-430.0,0.00023561,2]
[362917663,1748520659244,-430.0,0.00023561,2]
[362917664,1748520659253,-430.0,0.00023561,2]
[362917665,1748520659264,-430.0,0.00023561,2]
[362917666,1748520659273,-456.26,0.00023561,2]
[362917667,1748520659282,-981.55,0.00023561,2]
[362917668,1748520659292,-1201.9,0.00023561,2]
[362917669,1748520659301,-575.93,0.00023561,2]
[362917670,1748520659311,-265.28,0.00023561,2]
[362917671,1748520659320,-430.0,0.00023561,2]
[362917672,1748520659330,-628.52,0.00023561,2]
[362917673,1748520659339,-713.22,0.00023561,2]
[362917674,1748520659349,-299.6,0.00023561,2]
[362917675,1748520659358,-578.15,0.00023561,2]
[362917676,1748520659367,-31886.85,0.000236,7]
[362917677,1748520659376,-27372.07,0.000236,2]
[362917678,1748520659386,-4236.88,0.000236,2]
[362917679,1748520659395,-583.4289346,0.00023659,9]
[362917680,1748520659404,-207.4,0.00023717,2]
[362917681,1748520659413,-961.0,0.00023785,2]
[362917682,1748520659422,-708.0,0.00023785,2]
[362917683,1748520659432,-523.78,0.00023835,2]
[362917684,1748520659441,-1615.01,0.00023835,2]
[362917685,1748520659451,-430.0,0.00023835,2]
[362917686,1748520659460,-696.37,0.00023835,2]
[362917687,1748520659468,-522.24,0.00023835,2]
[362917688,1748520659478,-1165.95,0.00023835,2]
[362917689,1748520659487,-533.27,0.00023835,2]
[362917690,1748520659497,-485.57146413,0.00023835,2]
[362917691,1748520659507,-430.0,0.00023835,2]
[362917692,1748520659518,-430.0,0.00023835,2]
[362917693,1748520659527,-430.0,0.00023835,2]
[362917694,1748520659537,-430.0,0.00023835,2]
[362917695,1748520659546,-456.26,0.00023835,2]
[362917696,1748520659555,-981.55,0.00023835,2]
[362917697,1748520659565,-1201.9,0.00023835,2]
[362917698,1748520659574,-575.93,0.00023835,2]
[362917699,1748520659583,-430.0,0.00023835,2]
[362917700,1748520659592,-628.52,0.00023835,2]
[362917701,1748520659602,-713.22,0.00023835,2]
[362917702,1748520659611,-578.15,0.00023835,2]
[362917703,1748520659621,-583.4289346,0.00023866,10]
[362917704,1748520659694,-504.98,0.000239,14]
[362917705,1748520659703,-432.3,0.000239,2]
[362917706,1748520659713,-160.0,0.00024,7]
[362917707,1748520659723,-200.0,0.00024,120]
[362917708,1748520659734,-353330.0,0.00024,30]
[362917709,1748520659744,-160.0,0.00024,7]
[362917710,1748520659753,-423.31762986,0.00024,7]
[362917711,1748520659764,-583.4289346,0.00024072,10]
[362917712,1748520659773,-1615.01,0.00024109,2]
[362917713,1748520659782,-206.79,0.00024109,2]
[362917714,1748520659791,-696.37,0.00024109,2]
[362917715,1748520659801,-197.155,0.00024109,2]
[362917716,1748520659810,-522.24,0.00024109,2]
[362917717,1748520659819,-1165.95,0.00024109,2]
[362917718,1748520659829,-533.27,0.00024109,2]
[362917719,1748520659838,-465.36,0.00024109,2]
[362917720,1748520659848,-430.0,0.00024109,2]
[362917721,1748520659857,-430.0,0.00024109,2]
[362917722,1748520659867,-578.98410087,0.00024109,2]
[362917723,1748520659876,-456.26,0.00024109,2]
[362917724,1748520659886,-981.55,0.00024109,2]
[362917725,1748520659895,-1201.9,0.00024109,2]
[362917726,1748520659904,-575.93,0.00024109,2]
[362917727,1748520659914,-430.0,0.00024109,2]
[362917728,1748520659923,-628.52,0.00024109,2]
[362917729,1748520659932,-713.22,0.00024109,2]
[362917730,1748520659941,-578.15,0.00024109,2]
[362917731,1748520659951,-583.4289346,0.00024279,10]
[362917732,1748520659960,-1615.01,0.00024383,2]
[362917733,1748520659969,-696.37,0.00024383,2]
[362917734,1748520659979,-522.24,0.00024383,2]
[362917735,1748520659988,-1165.95,0.00024383,2]
[362917736,1748520659998,-533.27,0.00024383,2]
[362917737,1748520660009,-430.0,0.00024383,2]
[362917738,1748520660020,-244.11,0.00024383,2]
[362917739,1748520660030,-456.26,0.00024383,2]
[362917740,1748520660041,-981.55,0.00024383,2]
[362917741,1748520660051,-1201.9,0.00024383,2]
[362917742,1748520660062,-575.93,0.00024383,2]
[362917743,1748520660073,-412.19,0.00024383,2]
[362917744,1748520660083,-628.52,0.00024383,2]
[362917745,1748520660093,-713.22,0.00024383,2]
[362917746,1748520660103,-578.15,0.00024383,2]
[362917747,1748520660113,-504.98,0.000244,14]
[362917748,1748520660123,-583.4289346,0.00024486,11]
[362917749,1748520660132,-408.369775,0.000245,3]
[362917750,1748520660143,-967.34,0.00024566,15]
[362917751,1748520660153,-56494.0,0.000246,2]
[362917752,1748520660163,-1615.01,0.00024657,2]
[362917753,1748520660172,-696.37,0.00024657,2]
[362917754,1748520660194,-394.31,0.00024657,3]
[362917755,1748520660213,-522.24,0.00024657,2]
[362917756,1748520660232,-1165.95,0.00024657,2]
[362917757,1748520660254,-533.27,0.00024657,2]
[362917758,1748520660277,-275.7,0.00024657,2]
[362917759,1748520660297,-456.26,0.00024657,2]
[362917760,1748520660315,-981.55,0.00024657,2]
[362917761,1748520660330,-1201.9,0.00024657,2]
[362917762,1748520660350,-575.93,0.00024657,2]
[362917763,1748520660371,-628.52,0.00024657,2]
[362917764,1748520660391,-713.22,0.00024657,2]
[362917765,1748520660405,-578.15,0.00024657,2]
[362917766,1748520660424,-201.72443497,0.00024658,2]
[362917767,1748520660439,-583.4289346,0.00024693,11]
[362917768,1748520660455,-27372.07,0.000248,2]
[362917769,1748520660469,-4236.88,0.000248,2]
[362917770,1748520660485,-801.9291193,0.000248,2]
[362917771,1748520660500,-801.9291193,0.0002482,2]
[362917772,1748520660518,-801.9291193,0.00024841,2]
[362917773,1748520660532,-801.9291193,0.00024861,2]
[362917774,1748520660547,-801.9291193,0.00024882,2]
[362917775,1748520660562,-2000.0,0.000249,2]
[362917776,1748520660576,-152.75,0.000249,31]
[362917777,1748520660591,-152.75,0.000249,31]
[362917778,1748520660606,-152.75,0.000249,31]
[362917779,1748520660622,-152.75,0.000249,31]
[362917780,1748520660634,-152.75,0.000249,31]
[362917781,1748520660644,-152.75,0.000249,31]
[362917782,1748520660657,-152.75,0.000249,31]
[362917783,1748520660666,-152.75,0.000249,31]
[362917784,1748520660677,-152.75,0.000249,31]
[362917785,1748520660686,-152.75,0.000249,31]
[362917786,1748520660697,-152.75,0.000249,31]
[362917787,1748520660707,-151.0,0.000249,7]
[362917788,1748520660717,-10000.0,0.000249,33]
[362917789,1748520660727,-691486.478271,0.000249,2]
[362917790,1748520660738,-151.0,0.000249,7]
[362917791,1748520660748,-151.0,0.000249,7]
[362917792,1748520660757,-583.4289346,0.000249,12]
[362917793,1748520660770,-153.30726,0.000249,7]
[362917794,1748520660780,-151.0,0.000249,7]
[362917795,1748520660790,-207.850552,0.000249,7]
[362917796,1748520660800,-151.0,0.000249,7]
[362917797,1748520660810,-151.0,0.000249,7]
[362917798,1748520660820,-151.0,0.000249,7]
[362917799,1748520660830,-801.9291193,0.00024902,2]
[362917800,1748520660839,-653.72746393,0.00024913,2]
[362917801,1748520660850,-801.9291193,0.00024923,2]
[362917802,1748520660985,-1615.01,0.00024931,2]
[362917803,1748520661050,-696.37,0.00024931,2]
[362917804,1748520661062,-522.24,0.00024931,2]
[362917805,1748520661072,-1165.95,0.00024931,2]
[362917806,1748520661083,-533.27,0.00024931,2]
[362917807,1748520661092,-456.26,0.00024931,2]
[362917808,1748520661102,-981.55,0.00024931,2]
[362917809,1748520661111,-1201.9,0.00024931,2]
[362917810,1748520661123,-575.93,0.00024931,2]
[362917811,1748520661134,-628.52,0.00024931,2]
[362917812,1748520661145,-713.22,0.00024931,2]
[362917813,1748520661155,-578.15,0.00024931,2]
[362917814,1748520661166,-801.9291193,0.00024943,2]
[362917815,1748520661176,-801.9291193,0.00024964,2]
[362917816,1748520661186,-801.9291193,0.00024984,2]
[362917817,1748520661195,-56191.80291306,0.00025,2]
[362917818,1748520661249,-326.95215715,0.00025,2]
[362917819,1748520675203,254.48,0.00022,30]
[362917821,1748520824388,165.246113,0.00013699,2]
[362917822,1748520839104,344.72,0.00016,2]
[362917835,1748521717733,575.84784357,0.000149,2]
[362917841,1748521818209,4000.0,0.00022,30]
[362917862,1748521832064,-5000.0,0.00016724,2]
[362917863,1748521832074,-162.638423,0.00016893,2]
[362917864,1748521832084,-162.638423,0.00016935,2]
[362917865,1748521832094,-162.638423,0.00016977,2]
[362917866,1748521832104,-1862.21280081,0.000176,2]
[362917867,1748521832113,-300.0,0.00017699,2]
[362917868,1748521832123,-300.0,0.00017699,2]
[362917869,1748521832133,-6439.56370342,0.000177,2]
[362917870,1748521832145,-5268.81199753,0.000177,2]
[362917871,1748521832170,-8294.05544385,0.000177,2]
[362917872,1748521832180,-154.27060808,0.000179,2]
[362917873,1748521832191,-500.0,0.00017973,2]
[362917874,1748521832200,-500.0,0.00017973,2]
[362917875,1748521832210,-317.10264821,0.00017973,2]
[362917876,1748521832220,-504.66641701,0.00017973,2]
[362917877,1748521832229,-500.0,0.00017973,2]
[362917878,1748521832238,-500.0,0.00017973,2]
[362917879,1748521832248,-500.0,0.00017998,2]
[362917880,1748521832258,-500.0,0.00017998,2]
[362917881,1748521832268,-254.31534294,0.00017998,2]
[362917882,1748521832277,-421.73406448,0.00017998,2]
[362917883,1748521832288,-500.0,0.00017998,2]
[362917884,1748521832297,-500.0,0.00017998,2]
[362917885,1748521832309,-500.0,0.00017998,2]
[362917886,1748521832319,-500.0,0.00017998,2]
[362917887,1748521832328,-500.0,0.00017999,2]
[362917888,1748521832337,-614.19902846,0.00017999,2]
[362917889,1748521832347,-500.0,0.00017999,2]
[362917890,1748521832356,-500.0,0.00017999,2]
[362917891,1748521832366,-500.0,0.00017999,2]
[362917892,1748521832375,-500.0,0.00017999,2]
[362917893,1748521832384,-500.0,0.00017999,2]
[362917894,1748521832394,-500.0,0.00017999,2]
[362917895,1748521832405,-500.0,0.00017999,2]
[362917896,1748521832415,-500.0,0.00017999,2]
[362917897,1748521832425,-500.0,0.00017999,2]
[362917898,1748521832434,-500.0,0.00017999,2]
[362917899,1748521832443,-399.63972927,0.00017999,2]
[362917900,1748521832453,-500.0,0.00017999,2]
[362917901,1748521832462,-477.05597274,0.00017999,2]
[362917902,1748521832471,-500.0,0.00017999,2]
[362917903,1748521832481,-500.0,0.00017999,2]
[362917904,1748521832491,-500.0,0.00017999,2]
[362917905,1748521832500,-500.0,0.00017999,2]
[362917906,1748521832509,-500.0,0.00017999,2]
[362917907,1748521832519,-500.0,0.00017999,2]
[362917908,1748521832529,-500.0,0.00017999,2]
[362917909,1748521832538,-500.0,0.00017999,2]
[362917910,1748521832548,-500.0,0.00017999,2]
[362917911,1748521832558,-500.0,0.00017999,2]
[362917912,1748521832572,-500.0,0.00017999,2]
[362917913,1748521832585,-500.0,0.00017999,2]
[362917914,1748521832595,-500.0,0.00017999,2]
[362917915,1748521832604,-500.0,0.00017999,2]
[362917916,1748521832613,-500.0,0.00017999,2]
[362917917,1748521832623,-500.0,0.00017999,2]
[362917918,1748521832632,-550.0,0.00017999,2]
[362917919,1748521832641,-500.0,0.00017999,2]
[362917920,1748521832651,-26607.23903992,0.00018,2]
[362917921,1748521832672,-641.04713627,0.00018,2]
[362917947,1748521837722,-884.79514747,0.00018,2]
[362917958,1748521837833,-141498.76782881,0.00018,2]
[362917960,1748521837842,-33020.61747949,0.00018,2]
[362917962,1748521837851,-4772.51578456,0.00018,2]
[362917964,1748521837860,-349.619108,0.00018113,2]
[362917966,1748521837869,-352.4991712,0.00018176,2]
[362917968,1748521837879,-993.66282248,0.000184,2]
[362917970,1748521837888,-993.6628224,0.000184,2]
[362917971,1748521837898,-993.6628224,0.000184,2]
[362917974,1748521837907,-153.24,0.00018492,2]
[362917975,1748521837919,-1000.0,0.00018521,2]
[362917977,1748521837929,-229.85376745,0.00018603,2]
[362917979,1748521837938,-993.6628224,0.00018624,2]
[362917981,1748521837948,-993.6628224,0.00018866,2]
[362917983,1748521837958,-746.81126656,0.000189,2]
[362917985,1748521837967,-738.36753509,0.00019068,2]
[362917987,1748521837977,-222.01983254,0.00019078,2]
[362917989,1748521837986,-993.6628224,0.00019107,2]
[362917991,1748521837996,-524.68,0.00019168,3]
[362917993,1748521838006,-570.0,0.00019178,2]
[362917996,1748521838016,-360.0,0.00019178,2]
[362917997,1748521838025,-430.0,0.00019178,2]
[362917999,1748521838035,-310.8425788,0.00019178,2]
[362918002,1748521838046,-352.55406051,0.00019178,2]